[Event "Summer Chess Classic-A 2022"]
[Site "Saint Louis"]
[Date "2022.06.10"]
[Round "9.4"]
[White "Gledura, Benjamin"]
[Black "Oparin, Grigoriy"]
[Result "0-1"]
[ECO "D33"]
[WhiteElo "2644"]
[BlackElo "2685"]
[Annotator "TA"]
[PlyCount "102"]
[EventDate "2022.05.31"]
[EventType "tourn"]
[EventCountry "USA"]
[SourceTitle "playchess.com"]
[Source "ChessBase"]
[SourceQuality "1"]
[TimeControl "40/5400+30:1800+30"]

{[%evp 17,102,21,7,7,8,11,19,0,4,8,14,11,0,3,25,22,16,37,39,27,41,25,42,44,56,58,57,58,68,0,41,41,41,14,11,13,14,0,0,0,0,0,0,-16,125,0,0,0,73,-52,-16,-156,-140,-183,-178,-178,-169,-170,-165,-718,-401,-401,-399,-430,-424,-567,-475,-466,-458,-407,-236,-235,-224,-216,-179,-151,-171,-438,-434,-2350,-1489,-29964,-29966,-29979,-29980,-29980,-29980]} 1. c4 {[%emt 0:00:04]} Nf6 {[%emt 0:00:10]} 2. Nc3 {[%emt 0:00:31]} c5 {[%emt 0:00:11]} 3. Nf3 {[%emt 0:00:13]} e6 {[%emt 0:00:06]} 4. g3 {[%emt 0:00:31]} d5 {[%emt 0:00:20]} 5. cxd5 {[%emt 0:00:27]} exd5 {[%emt 0:00:06]} 6. d4 {[%emt 0:00:07]} Nc6 {[%emt 0:00:07]} 7. Bg2 {[%emt 0:00:20]} cxd4 {[%emt 0:00:08]} 8. Nxd4 {[%emt 0:00:05]} Bc5 {[%emt 0:00:06]} 9. Nxc6 {[%emt 0:03:33]} bxc6 {[%emt 0:00:07]} 10. Na4 {[%emt 0:00:30] D33: Tarrasch Defence: 6 g3 sidelines.} Bb6 {[%emt 0:00:14]} 11. Qc2 {[%emt 0:00:29] [#]} Bd7 $146 {[%emt 0:04:45]} ({Predecessor:} 11... O-O 12. Nxb6 axb6 13. O-O Bd7 14. b4 Re8 15. Be3 b5 16. Bd4 Qe7 17. e3 Qxb4 18. Bxf6 gxf6 {0-1 (36) Sunilduth Lyna,N (2611)-Firouzja,A (2702) chess24.com INT 2020}) 12. Nc5 {[%emt 0:07:32] The position is equal.} O-O {[%emt 0:01:36]} 13. Nxd7 {[%emt 0:00:54]} Qxd7 {[%emt 0:00:24]} 14. O-O {[%emt 0:00:11]} Rfe8 {[%emt 0:04:17]} 15. a4 {[%emt 0:00:45]} a5 {[%emt 0:06:37]} 16. Ra3 {[%emt 0:00:46]} Rac8 {[%emt 0:15:52]} 17. Rb3 {[%emt 0:06:14]} Ba7 {[%emt 0:02:24]} 18. e3 {[%emt 0:06:59]} Ne4 {[%emt 0:10:07]} 19. Bd2 {[%emt 0:19:35]} Nxd2 {[%emt 0:05:33]} 20. Qxd2 {[%emt 0:00:13]} d4 {[%emt 0:00:10]} 21. Rd3 {[%emt 0:11:47]} c5 {[%emt 0:01:00]} 22. Qxa5 {[%emt 0:06:19]} c4 {[%emt 0:01:58][%csl LRd3,LRe3]} 23. Rdd1 {[%emt 0:03:45]} ({White should play} 23. Rd2 $1 $14) 23... d3 {[%emt 0:08:09]} (23... Rc5 $5 {[%cal Rc5a5]} 24. Qd2 d3 $11) 24. Qb5 {[%emt 0:05:18]} Qe7 {[%emt 0:02:25]} 25. a5 {[%emt 0:07:32] next b3 is good for White.} Rc5 {[%emt 0:03:26]} 26. Qa4 {[%emt 0:00:16] White wants to play b3.} Rb8 {[%emt 0:02:04] Prevents b3.} 27. Rd2 {[%emt 0:00:30]} h5 {[%emt 0:05:00][%cal Bh7h5,Bh5h4,Bh4h3][%mdl 32]} 28. Rc1 {[%emt 0:01:49]} Qe6 {[%emt 0:01:43]} 29. a6 {[%emt 0:01:42]} Rb6 {[%emt 0:02:50]} 30. Bb7 {[%emt 0:01:21]} Rd6 {[%emt 0:08:31]} (30... Rbb5 $11) 31. Qd1 {[%emt 0:01:45]} (31. Qb4 $1 $16) 31... h4 $1 $11 {[%emt 0:05:30]} 32. Qf3 {[%emt 0:06:00]} Re5 {[%emt 0:03:49]} (32... h3 $11) 33. Re1 {[%emt 0:04:07]} ({White should try} 33. gxh4 $16 Rb6 34. Qf4) 33... g6 {[%emt 0:03:09][%mdl 1024] Black has compensation.} 34. Kg2 {[%emt 0:01:57] Black keeps a firm grip on the game.} (34. gxh4 $11 {remains equal.} Rd4 35. exd4 Rxe1+ 36. Kg2) 34... h3+ $1 $17 {[%emt 0:01:04]} 35. Kf1 {[%emt 0:01:07]} Qe7 {[%emt 0:01:58]} 36. Qg4 {[%emt 0:01:58] [#]} Rf6 $1 {[%emt 0:00:13][%cal Ra7e3] ...Bxe3 is the strong threat.} 37. Qxc4 {[%emt 0:00:57]} Rxe3 {[%emt 0:01:46][%csl Ge7][%cal Re3e1] Chess con chili.} 38. Qc1 {[%emt 0:00:21]} (38. Be4) 38... Rxe1+ {[%emt 0:00:39]} 39. Qxe1 {[%emt 0:00:05]} Qc5 {[%emt 0:00:25]} 40. b3 {[%emt 0:01:17]} Qd4 {[%emt 0:00:58]} 41. Bc8 {[%emt 0:19:00]} Kg7 {[%emt 0:07:17]} 42. Bb7 {[%emt 0:02:00]} Bc5 {[%emt 0:12:35]} 43. Be4 {[%emt 0:02:13]} Re6 {[%emt 0:01:41]} (43... Bb6 $142 {aiming for ...Ba7.} 44. Bxd3 (44. Rxd3 Rxf2+ 45. Kg1 Rg2+ 46. Kh1 Rg1+) 44... Re6) 44. Rxd3 $19 {[%emt 0:00:28]} Rxe4 $40 {[%emt 0:02:06][%mdl 128] Black has strong attack.} ({Not} 44... Qxe4 45. Qxe4 Rxe4 46. Rd5 $17 (46. Rd7 $2 Re6 $19)) 45. Qc3 {[%emt 0:00:09]} ({Much weaker is} 45. Rxd4 Rxe1+ 46. Kxe1 Bxd4) 45... Qxc3 {[%emt 0:01:57]} 46. Rxc3 {[%emt 0:00:01][%mdl 4096] Endgame [#] KRB-KR} Bb6 {[%emt 0:00:39]} 47. Rc6 $2 {[%emt 0:04:34]} (47. Rc8) 47... Re6 {[%emt 0:01:21]} 48. Rxe6 {[%emt 0:03:18]} (48. Rc4 $142 Ba7 49. Rc2) 48... fxe6 {[%emt 0:00:04][%cal Bf7e6,Be6e5,Be5e4][%mdl 32]} 49. f4 {[%emt 0:01:46]} g5 {[%emt 0:04:14] Black mates.} 50. fxg5 {[%emt 0:00:06]} e5 {[%emt 0:00:23]} 51. Ke2 {[%emt 0:01:32]} e4 {[%emt 0:00:04] Weighted Error Value: White=0.78/Black=0.23 (precise)} 0-1